fUSD/lending_fUSD_20250103
["ID","MTS","AMOUNT","RATE_DAILY","PERIOD"]
[347603520,1735943444231,-730.48,0.00012172,2]
[347603521,1735943444241,-962.62,0.00012172,2]
[347603522,1735943444252,-619.05,0.00012172,2]
[347603523,1735943444262,-981.99,0.00012172,2]
[347603524,1735943444272,-1242.83,0.00012172,2]
[347603525,1735943444281,-500.0,0.00012172,2]
[347603526,1735943444291,-500.0,0.00012172,2]
[347603527,1735943444300,-500.0,0.00012172,2]
[347603528,1735943444310,-500.0,0.00012172,2]
[347603529,1735943444319,-500.0,0.00012172,2]
[347603530,1735943444329,-500.0,0.00012172,2]
[347603531,1735943444338,-645.82,0.00012172,2]
[347603532,1735943444348,-500.0,0.00012172,2]
[347603533,1735943444357,-1000.0,0.00012172,2]
[347603534,1735943444366,-500.0,0.00012172,2]
[347603535,1735943444376,-500.0,0.00012172,2]
[347603536,1735943444385,-500.0,0.00012172,2]
[347603537,1735943444395,-610.99,0.00012172,2]
[347603538,1735943444405,-500.0,0.00012172,2]
[347603539,1735943444414,-963.0,0.00012172,2]
[347603540,1735943444424,-500.0,0.00012172,2]
[347603541,1735943444434,-334.11,0.00012172,2]
[347603542,1735943444443,-708.79,0.00012172,2]
[347603543,1735943444452,-438.86975266,0.00012172,2]
[347603544,1735943444464,-61.13024734,0.00012172,2]
[347603545,1735943444474,-812.53,0.00012172,2]
[347603546,1735943444483,-581.12,0.00012172,2]
[347603547,1735943444492,-500.0,0.00012172,2]
[347603548,1735943444502,-500.0,0.00012172,2]
[347603549,1735943444512,-715.87,0.00012172,2]
[347603550,1735943444521,-3630.55774761,0.00012173,2]
[347603551,1735943444531,-1859.0,0.00012197,2]
[347603552,1735943444540,-919.0,0.00012197,2]
[347603553,1735943444550,-3775.0,0.00012197,2]
[347603554,1735943444560,-1258.0,0.00012197,2]
[347603555,1735943444569,-819.0,0.00012197,2]
[347603556,1735943444579,-2567.741,0.00012197,2]
[347603557,1735943444588,-536.0,0.00012197,2]
[347603558,1735943444598,-1278.126,0.00012197,2]
[347603559,1735943444608,-2014.0,0.00012197,2]
[347603560,1735943444617,-9528.79,0.000122,2]
[347603561,1735943444627,-1348.11621636,0.000122,2]
[347603562,1735943444636,-500.0,0.00012202,2]
[347603563,1735943444646,-2000.0,0.00012202,2]
[347603564,1735943444655,-475.01190697,0.0001226,2]
[347603591,1735943445524,-1847.69,0.00011898,2]
[347603592,1735943445534,-1070.87,0.00012063,2]
[347603593,1735943445544,-24.98809303,0.0001226,2]
[347603594,1735943445554,-500.0,0.0001226,2]
[347603595,1735943445563,-345.36,0.0001226,2]
[347603596,1735943445572,-500.0,0.0001226,2]
[347603597,1735943445583,-500.0,0.0001226,2]
[347603598,1735943445592,-500.0,0.0001226,2]
[347603599,1735943445601,-500.0,0.0001226,2]
[347603600,1735943445611,-500.0,0.00012272,2]
[347603601,1735943445620,-500.0,0.00012272,2]
[347603602,1735943445631,-500.0,0.00012272,2]
[347603603,1735943445640,-1022.04,0.00012272,2]
[347603604,1735943445649,-500.0,0.00012272,2]
[347603605,1735943445659,-1094.67,0.00012272,2]
[347603606,1735943445668,-500.0,0.00012272,2]
[347603607,1735943445677,-988.95,0.00012272,2]
[347603608,1735943445686,-500.0,0.00012272,2]
[347603609,1735943445695,-683.88,0.00012272,2]
[347603610,1735943445705,-500.0,0.00012272,2]
[347603611,1735943445714,-1178.69,0.00012272,2]
[347603612,1735943445723,-629.40890289,0.00012272,2]
[347603613,1735943445733,-500.0,0.00012272,2]
[347603614,1735943445742,-595.23,0.00012272,2]
[347603615,1735943445752,-630.5,0.00012272,2]
[347603616,1735943445762,-500.0,0.00012272,2]
[347603617,1735943445771,-991.9,0.00012272,2]
[347603618,1735943445780,-500.0,0.00012272,2]
[347603619,1735943445790,-208.3513374,0.00012273,2]
[347603620,1735943445804,-291.6486626,0.00012273,2]
[347603621,1735943445813,-500.0,0.00012273,2]
[347603622,1735943445822,-500.0,0.00012273,2]
[347603623,1735943445833,-500.0,0.00012273,2]
[347603624,1735943445844,-500.0,0.00012273,2]
[347603625,1735943445853,-500.0,0.00012273,2]
[347603626,1735943445862,-500.0,0.00012273,2]
[347603627,1735943445871,-583.848025,0.00012273,2]
[347603628,1735943445883,-45.511975,0.00012273,2]
[347603629,1735943445892,-543.65,0.00012273,2]
[347603630,1735943445902,-500.0,0.00012273,2]
[347603631,1735943445911,-253.413025,0.00012273,2]
[347603632,1735943445936,-1014.65,0.00012172,2]
[347603633,1735943445974,-833.04,0.00012172,2]
[347603634,1735943445983,-124.36000005,0.00012273,2]
[347603635,1735943445995,-122.22697495,0.00012273,2]
[347603636,1735943446004,-251.24078496,0.00012273,2]
[347603637,1735943446015,-248.75921504,0.00012273,2]
[347603638,1735943446025,-367.24078496,0.00012273,2]
[347603639,1735943637341,500.0,0.0002,120]
[347603640,1735943675462,183.0,0.00012273,30]
[347603641,1735943675730,183.0,0.00012785,30]
[347603643,1735944542500,165.0,0.00012785,30]
[347603644,1735944547132,-243.43322611,9.213e-05,2]
[347603649,1735944631783,-1619.3444437,0.0001,2]
[347603650,1735944631792,-153.0,0.00010037,2]
[347603651,1735944631802,-230.65303761,0.00010137,2]
[347603652,1735944631828,-305.53696239,0.00010137,2]
[347603653,1735944631838,-250.0,0.00010474,2]
[347603654,1735944631847,-6594.90873583,0.00010479,2]
[347603655,1735944631859,-5284.64725654,0.00010479,2]
[347603656,1735944631870,-4816.89901333,0.00010479,2]
[347603657,1735944631881,-250.0,0.00010479,2]
[347603658,1735944631890,-207.3,0.00010812,2]
[347603659,1735944631900,-853.02898667,0.0001086,2]
[347603660,1735944631912,-3469.80101333,0.0001086,2]
[347603661,1735944631922,-495.92,0.000109,2]
[347603662,1735944631931,-504.25,0.000109,2]
[347603663,1735944631941,-505.87,0.000109,2]
[347603664,1735944631950,-150.0,0.00010959,2]
[347603665,1735944631959,-569.65898667,0.00010969,2]
[347603666,1735944631980,-1724.87016437,0.00010969,2]
[347603667,1735944631989,-2294.52915104,0.0001097,2]
[347603668,1735944631998,-4547.81124459,0.0001097,2]
[347603669,1735944632007,-1589.78944,0.00010972,2]
[347603670,1735944632018,-669.27662058,0.00010972,2]
[347603671,1735944632057,-2288.74518401,0.00010972,2]
[347603672,1735944632067,-2294.52915104,0.00010973,2]
[347603673,1735944632077,-1881.11662215,0.00010974,2]
[347603674,1735944632086,-2294.52915104,0.00010976,2]
[347603675,1735944632096,-2294.52915104,0.00010976,2]
[347603676,1735944632105,-2294.52915104,0.00010977,2]
[347603677,1735944632115,-4547.81124459,0.00010981,2]
[347603678,1735944632124,-4547.81124459,0.00010983,2]
[347603679,1735944632134,-1881.11662215,0.00010984,2]
[347603680,1735944632144,-4547.81124459,0.00010989,2]
[347603681,1735944632153,-1881.11662215,0.00010992,2]
[347603682,1735944632163,-1881.11662215,0.00010995,2]
[347603683,1735944632171,-1881.11662215,0.00010997,2]
[347603684,1735944632181,-1881.11662215,0.00010999,2]
[347603685,1735944632190,-4547.81124459,0.00011,2]
[347603686,1735944632201,-550.0,0.00011,2]
[347603687,1735944632210,-150.0,0.00011047,2]
[347603688,1735944632219,-150.0,0.00011047,2]
[347603689,1735944632230,-150.13475743,0.00011047,2]
[347603690,1735944632241,-150.0,0.00011047,2]
[347603691,1735944632250,-150.0,0.00011047,2]
[347603692,1735944632259,-284.42890519,0.00011047,2]
[347603693,1735944632268,-168.75496854,0.00011047,2]
[347603694,1735944632277,-150.0,0.00011047,2]
[347603695,1735944632287,-150.0,0.00011047,2]
[347603696,1735944632297,-158.70219522,0.00011047,2]
[347603698,1735944632307,-171.69550468,0.00011047,2]
[347603700,1735944632316,-150.0,0.00011047,2]
[347603701,1735944632325,-150.0,0.00011047,2]
[347603703,1735944632334,-400.0,0.00011075,2]
[347603705,1735944632344,-150.0,0.00011083,2]
[347603707,1735944632356,-150.0,0.00011119,2]
[347603709,1735944632365,-150.0,0.00011119,2]
[347603711,1735944632375,-150.0,0.00011155,2]
[347603713,1735944632384,-150.0,0.00011191,2]
[347603714,1735944632393,-150.0,0.00011191,2]
[347603716,1735944632402,-1000.0,0.00011201,2]
[347603718,1735944632412,-150.0,0.00011222,2]
[347603720,1735944632421,-150.0,0.00011227,2]
[347603722,1735944632430,-150.0,0.00011263,2]
[347603724,1735944632439,-150.0,0.00011263,2]
[347603726,1735944632448,-150.0,0.00011299,2]
[347603728,1735944632457,-150.0,0.00011335,2]
[347603730,1735944632466,-150.0,0.00011335,2]
[347603732,1735944632476,-150.0,0.00011371,2]
[347603734,1735944632484,-150.0,0.00011397,2]
[347603736,1735944632494,-150.0,0.00011408,2]
[347603738,1735944632503,-150.0,0.00011408,2]
[347603740,1735944632513,-150.0,0.00011444,2]
[347603742,1735944632522,-300.0,0.00011479,2]
[347603744,1735944632531,-412.14,0.00011479,2]
[347603746,1735944632540,-873.31,0.00011479,2]
[347603748,1735944632552,-150.0,0.00011479,2]
[347603750,1735944632562,-182.83,0.00011479,2]
[347603752,1735944632571,-150.0,0.00011479,2]
[347603753,1735944632580,-150.0,0.00011479,2]
[347603755,1735944632590,-906.24,0.00011479,2]
[347603757,1735944632599,-182.83,0.00011479,2]
[347603759,1735944632608,-150.0,0.00011479,2]
[347603761,1735944632617,-150.0,0.00011479,2]
[347603763,1735944632628,-150.0,0.00011479,2]
[347603765,1735944632637,-182.83,0.00011479,2]
[347603767,1735944632648,-150.0,0.00011479,2]
[347603769,1735944632659,-302.75,0.00011479,2]
[347603771,1735944632669,-356.86,0.00011479,2]
[347603773,1735944632678,-182.55,0.00011479,2]
[347603774,1735944632687,-150.0,0.0001148,2]
[347603775,1735944632696,-150.0,0.0001148,2]
[347603777,1735944632706,-150.0,0.00011516,2]
[347603779,1735944632715,-150.0,0.00011552,2]
[347603781,1735944632724,-150.0,0.00011552,2]
[347603783,1735944632734,-150.0,0.00011573,2]
[347603785,1735944632743,-150.0,0.00011588,2]
[347603787,1735944632752,-150.0,0.00011624,2]
[347603789,1735944632761,-150.0,0.00011624,2]
[347603791,1735944632771,-153.0,0.00011648,2]
[347603793,1735944632780,-273.866,0.0001166,2]
[347603795,1735944632790,-150.0,0.0001166,2]
[347603797,1735944632799,-150.0,0.0001166,2]
[347603799,1735944632808,-150.0,0.0001166,2]
[347603801,1735944632817,-150.0,0.00011696,2]
[347603803,1735944632827,-150.0,0.00011696,2]
[347603805,1735944632836,-150.0,0.00011732,2]
[347603807,1735944632846,-22018.0,0.00011748,2]
[347603809,1735944632858,-150.0,0.00011748,2]
[347603811,1735944632867,-150.0,0.00011769,2]
[347603813,1735944632879,-150.0,0.00011769,2]
[347603815,1735944632888,-311.3678,0.00011798,2]
[347603817,1735944632897,-3722.3541,0.00011798,2]
[347603819,1735944632906,-569.0547,0.00011798,2]
[347603821,1735944632915,-150.0,0.00011805,2]
[347603823,1735944632925,-150.0,0.00011841,2]
[347603825,1735944632935,-150.0,0.00011841,2]
[347603827,1735944632945,-1000.0,0.00011862,2]
[347603829,1735944632954,-150.0,0.00011877,2]
[347603831,1735944632963,-1573.5284,0.00011886,2]
[347603833,1735944632973,-141057.98,0.00011898,2]
[347603835,1735944632982,-150.0,0.00011913,2]
[347603837,1735944632991,-150.0,0.00011913,2]
[347603839,1735944633000,-150.0,0.00011923,2]
[347603841,1735944633009,-200.0,0.00011937,2]
[347603843,1735944633019,-504.45,0.00011942,2]
[347603845,1735944633028,-150.0,0.00011949,2]
[347603847,1735944633037,-7954.7903,0.00011962,2]
[347603848,1735944633046,-500.0,0.00011984,2]
[347603850,1735944633055,-1083.39,0.00011984,2]
[347603852,1735944633064,-1252.44,0.00011984,2]
[347603854,1735944633074,-500.0,0.00011984,2]
[347603856,1735944633083,-1059.06,0.00011984,2]
[347603858,1735944633092,-500.0,0.00011984,2]
[347603859,1735944633101,-1243.16,0.00011984,2]
[347603860,1735944633111,-630.94,0.00011984,2]
[347603861,1735944633120,-500.0,0.00011984,2]
[347603862,1735944633130,-629.06,0.00011984,2]
[347603863,1735944633139,-500.0,0.00011984,2]
[347603864,1735944633148,-500.0,0.00011984,2]
[347603865,1735944633157,-500.0,0.00011984,2]
[347603866,1735944633166,-500.0,0.00011984,2]
[347603867,1735944633175,-500.0,0.00011984,2]
[347603868,1735944633185,-500.0,0.00011984,2]
[347603869,1735944633194,-500.0,0.00011984,2]
[347603870,1735944633203,-500.0,0.00011985,2]
[347603871,1735944633212,-500.0,0.00011985,2]
[347603872,1735944633221,-500.0,0.00011985,2]
[347603873,1735944633230,-500.0,0.00011985,2]
[347603874,1735944633239,-500.0,0.00011985,2]
[347603875,1735944633248,-500.0,0.00011985,2]
[347603876,1735944633257,-500.0,0.00011985,2]
[347603877,1735944633267,-500.0,0.00011985,2]
[347603878,1735944633276,-500.0,0.00011985,2]
[347603879,1735944633285,-500.0,0.00011985,2]
[347603880,1735944633294,-500.0,0.00011985,2]
[347603881,1735944633304,-500.0,0.00011985,2]
[347603882,1735944633313,-500.0,0.00011985,2]
[347603883,1735944633323,-500.0,0.00011985,2]
[347603884,1735944633332,-702.3,0.00011985,2]
[347603885,1735944633342,-500.0,0.00011985,2]
[347603886,1735944633352,-500.0,0.00011985,2]
[347603887,1735944633361,-500.0,0.00011985,2]
[347603888,1735944633371,-500.0,0.00011985,2]
[347603889,1735944633380,-500.0,0.00011985,2]
[347603890,1735944633390,-500.0,0.00011985,2]
[347603891,1735944633399,-500.0,0.00011985,2]
[347603892,1735944633409,-500.0,0.00011985,2]
[347603893,1735944633418,-500.0,0.00011985,2]
[347603894,1735944633428,-500.0,0.00011985,2]
[347603895,1735944633438,-500.0,0.00011985,2]
[347603896,1735944633447,-500.0,0.00011985,2]
[347603897,1735944633456,-500.0,0.00011985,2]
[347603898,1735944633466,-500.0,0.00011985,2]
[347603899,1735944633475,-500.0,0.00011985,2]
[347603900,1735944633485,-556.63,0.00011985,2]
[347603901,1735944633495,-500.0,0.00011985,2]
[347603902,1735944633505,-500.0,0.00011985,2]
[347603903,1735944633515,-1033.89,0.00011985,2]
[347603904,1735944633524,-500.0,0.00011985,2]
[347603905,1735944633533,-534.12,0.00011985,2]
[347603906,1735944633542,-403.31135243,0.00011985,2]
[347603907,1735944633555,-500.0,0.00011985,2]
[347603908,1735944633564,-500.0,0.00011985,2]
[347603909,1735944633574,-500.0,0.00011985,2]
[347603910,1735944633583,-500.0,0.00011985,2]
[347603911,1735944633594,-500.0,0.00011985,2]
[347603912,1735944633782,-500.0,0.00011985,2]
[347603913,1735944633793,-1219.19,0.00011985,2]
[347603914,1735944633803,-500.0,0.00011985,2]
[347603915,1735944633812,-500.0,0.00011985,2]
[347603916,1735944633821,-500.0,0.00011985,2]
[347603917,1735944633831,-500.0,0.00011985,2]
[347603918,1735944633840,-500.0,0.00011985,2]
[347603919,1735944633849,-500.0,0.00011985,2]
[347603920,1735944633858,-500.0,0.00011985,2]
[347603921,1735944633868,-500.0,0.00011985,2]
[347603922,1735944633877,-500.0,0.00011985,2]
[347603923,1735944633886,-616.44,0.00011985,2]
[347603924,1735944633895,-970.9,0.00011985,2]
[347603925,1735944633904,-500.0,0.00011985,2]
[347603926,1735944633914,-500.0,0.00011985,2]
[347603927,1735944633923,-500.0,0.00011985,2]
[347603928,1735944633932,-591.66028167,0.00011985,2]
[347603929,1735944633941,-3881.5,0.00011985,2]
[347603930,1735944633950,-500.0,0.00011985,2]
[347603931,1735944633959,-500.0,0.00011985,2]
[347603932,1735944633968,-500.0,0.00011985,2]
[347603933,1735944633978,-500.0,0.00011985,2]
[347603934,1735944633987,-500.0,0.00011985,2]
[347603935,1735944633996,-500.0,0.00011985,2]
[347603936,1735944634005,-500.0,0.00011985,2]
[347603937,1735944634014,-500.0,0.00011985,2]
[347603938,1735944634023,-500.0,0.00011985,2]
[347603939,1735944634033,-500.0,0.00011985,2]
[347603940,1735944634042,-500.0,0.00011985,2]
[347603941,1735944634051,-500.0,0.00011985,2]
[347603942,1735944634060,-293.379279,0.00011985,2]
[347603943,1735944634069,-640.79,0.00011985,2]
[347603944,1735944634078,-500.0,0.00011985,2]
[347603945,1735944634088,-500.0,0.00011985,2]
[347603946,1735944634097,-500.0,0.00011985,2]
[347603947,1735944634106,-500.0,0.00011985,2]
[347603948,1735944634116,-500.0,0.00011985,2]
[347603949,1735944634125,-500.0,0.00011985,2]
[347603950,1735944634134,-500.0,0.00011985,2]
[347603951,1735944634144,-3114.59,0.00011985,2]
[347603952,1735944634154,-1203.51,0.00011985,2]
[347603953,1735944634163,-500.0,0.00011985,2]
[347603954,1735944634173,-217.437242,0.00011985,2]
[347603955,1735944634182,-500.0,0.00011985,2]
[347603956,1735944634192,-500.0,0.00011985,2]
[347603957,1735944634201,-430.10842665,0.00011985,2]
[347603958,1735944634210,-500.0,0.00011985,2]
[347603959,1735944634219,-500.0,0.00011985,2]
[347603960,1735944634228,-500.0,0.00011985,2]
[347603961,1735944634238,-500.0,0.00011985,2]
[347603962,1735944634247,-500.0,0.00011985,2]
[347603963,1735944634257,-500.0,0.00011985,2]
[347603964,1735944634266,-500.0,0.00011985,2]
[347603965,1735944634275,-2401.11,0.00011985,2]
[347603966,1735944634284,-528.68,0.00011985,2]
[347603967,1735944634293,-500.0,0.00011985,2]
[347603968,1735944634303,-284.44317091,0.00011985,2]
[347603969,1735944634379,-215.55682909,0.00011985,2]
[347603970,1735944634389,-259.44317091,0.00011985,2]
[347603971,1735944634400,-240.55682909,0.00011985,2]
[347603972,1735944634410,-500.0,0.00011985,2]
[347603973,1735944634419,-500.0,0.00011985,2]
[347603974,1735944634430,-500.0,0.00011985,2]
[347603975,1735944634439,-500.0,0.00011985,2]
[347603976,1735944634449,-500.0,0.00011985,2]
[347603977,1735944634458,-500.0,0.00011985,2]
[347603978,1735944634468,-500.0,0.00011985,2]
[347603979,1735944634478,-500.23604316,0.00011985,2]
[347603980,1735944634488,-500.0,0.00011985,2]
[347603981,1735944634498,-500.0,0.00011985,2]
[347603982,1735944634507,-500.0,0.00011985,2]
[347603983,1735944634517,-500.0,0.00011985,2]
[347603984,1735944634527,-500.0,0.00011985,2]
[347603985,1735944634537,-500.0,0.00011985,2]
[347603986,1735944634546,-550.57,0.00011985,2]
[347603987,1735944634561,-500.0,0.00011985,2]
[347603988,1735944634570,-500.0,0.00011985,2]
[347603989,1735944634579,-283.69343968,0.00011985,2]
[347603990,1735944634619,-216.30656032,0.00011985,2]
[347603991,1735944634629,-500.0,0.00011985,2]
[347603992,1735944634639,-500.0,0.00011985,2]
[347603993,1735944634648,-500.0,0.00011985,2]
[347603994,1735944634658,-500.0,0.00011985,2]
[347603995,1735944634667,-500.0,0.00011985,2]
[347603996,1735944634678,-599.9,0.00011985,2]
[347603997,1735944634687,-500.0,0.00011985,2]
[347603998,1735944634696,-500.0,0.00011985,2]
[347603999,1735944634706,-792.57,0.00011985,2]
[347604000,1735944634715,-500.0,0.00011985,2]
[347604001,1735944634724,-500.0,0.00011985,2]
[347604002,1735944634734,-500.0,0.00011985,2]
[347604003,1735944634744,-587.48,0.00011985,2]
[347604004,1735944634753,-1193.61,0.00011985,2]
[347604005,1735944634762,-500.0,0.00011985,2]
[347604006,1735944634772,-500.0,0.00011985,2]
[347604007,1735944634782,-500.0,0.00011985,2]
[347604008,1735944634792,-500.0,0.00011985,2]
[347604009,1735944634802,-651.44,0.00011985,2]
[347604010,1735944634811,-500.0,0.00011985,2]
[347604011,1735944634821,-500.0,0.00011985,2]
[347604012,1735944634831,-665.75,0.00011985,2]
[347604013,1735944634840,-500.0,0.00011985,2]
[347604014,1735944634850,-500.0,0.00011985,2]
[347604015,1735944634860,-500.0,0.00011985,2]
[347604016,1735944634869,-500.0,0.00011985,2]
[347604017,1735944634879,-595.09,0.00011985,2]
[347604018,1735944634888,-500.0,0.00011985,2]
[347604019,1735944634898,-500.0,0.00011985,2]
[347604020,1735944634907,-500.0,0.00011985,2]
[347604021,1735944634916,-500.0,0.00011985,2]
[347604022,1735944634926,-500.0,0.00011985,2]
[347604023,1735944634936,-500.0,0.00011985,2]
[347604024,1735944634947,-500.0,0.00011985,2]
[347604025,1735944634958,-500.0,0.00011985,2]
[347604026,1735944634967,-500.0,0.00011985,2]
[347604027,1735944634976,-500.0,0.00011985,2]
[347604028,1735944634986,-500.0,0.00011985,2]
[347604029,1735944634995,-150.0,0.00011985,2]
[347604030,1735944635005,-150.0,0.00011985,2]
[347604031,1735944635015,-500.0,0.00011986,2]
[347604032,1735944635025,-500.0,0.00011986,2]
[347604033,1735944635035,-500.0,0.00011986,2]
[347604034,1735944635044,-500.0,0.00011986,2]
[347604035,1735944635054,-500.0,0.00011986,2]
[347604036,1735944635063,-500.0,0.00011986,2]
[347604037,1735944635074,-500.0,0.00011986,2]
[347604038,1735944635084,-500.0,0.00011986,2]
[347604039,1735944635096,-500.0,0.00011986,2]
[347604040,1735944635106,-500.0,0.00011986,2]
[347604041,1735944635115,-500.0,0.00011986,2]
[347604042,1735944635124,-500.0,0.00011986,2]
[347604043,1735944635134,-500.0,0.00011986,2]
[347604044,1735944635143,-500.0,0.00011986,2]
[347604045,1735944635152,-502.81,0.00011986,2]
[347604046,1735944635162,-500.0,0.00011986,2]
[347604047,1735944635172,-500.0,0.00011986,2]
[347604048,1735944635181,-500.0,0.00011986,2]
[347604049,1735944635190,-500.0,0.00011986,2]
[347604050,1735944635199,-500.0,0.00011986,2]
[347604051,1735944635208,-500.0,0.00011986,2]
[347604052,1735944635218,-500.0,0.00011986,2]
[347604053,1735944635227,-500.0,0.00011986,2]
[347604054,1735944635236,-500.0,0.00011986,2]
[347604055,1735944635245,-500.0,0.00011986,2]
[347604056,1735944635255,-500.0,0.00011986,2]
[347604057,1735944635264,-166.78468593,0.00011986,2]
[347604058,1735944635273,-500.0,0.00011986,2]
[347604059,1735944635283,-500.0,0.00011986,2]
[347604060,1735944635292,-500.0,0.00011986,2]
[347604061,1735944635302,-500.0,0.00011986,2]
[347604062,1735944635311,-500.0,0.00011986,2]
[347604063,1735944635321,-57.93555067,0.00011986,2]
[347604064,1735944635383,-438.1314448,0.00011985,2]
[347604065,1735944635395,-61.8685552,0.00011985,2]
[347604066,1735944635406,-442.06444933,0.00011986,2]
[347604067,1735944635415,-156.00377989,0.00011986,2]
[347604068,1735944635426,-343.99622011,0.00011986,2]
[347604069,1735944635436,-440.57056688,0.00011986,2]
[347604070,1735944635448,-59.42943312,0.00011986,2]
[347604071,1735944635457,-500.0,0.00011986,2]
[347604072,1735944635467,-500.0,0.00011986,2]
[347604073,1735944635475,-500.0,0.00011986,2]
[347604074,1735944635485,-500.0,0.00011986,2]
[347604075,1735944635494,-194.82455677,0.00011986,2]
[347604076,1735944637697,-500.0,0.00011984,2]
[347604077,1735944637707,-500.0,0.00011984,2]
[347604078,1735944637716,-500.0,0.00011985,2]
[347604079,1735944637727,-305.17544323,0.00011986,2]
[347604080,1735944637737,-500.0,0.00011986,2]
[347604081,1735944637746,-64.19033699,0.00011986,2]
[347604082,1735944637759,-435.80966301,0.00011986,2]
[347604083,1735944637769,-500.0,0.00011986,2]
[347604084,1735944637778,-500.0,0.00011986,2]
[347604085,1735944637788,-500.0,0.00011986,2]
[347604086,1735944637797,-500.0,0.00011986,2]
[347604087,1735944637807,-500.0,0.00011986,2]
[347604088,1735944637816,-500.0,0.00011986,2]
[347604089,1735944637825,-500.0,0.00011986,2]
[347604090,1735944637834,-500.0,0.00011986,2]
[347604091,1735944637845,-500.0,0.00011986,2]
[347604092,1735944637855,-500.0,0.00011986,2]
[347604093,1735944637864,-500.0,0.00011986,2]
[347604094,1735944637874,-500.0,0.00011986,2]
[347604095,1735944637883,-500.0,0.00011986,2]
[347604096,1735944637893,-500.0,0.00011986,2]
[347604097,1735944637904,-500.0,0.00011986,2]
[347604098,1735944637914,-500.0,0.00011986,2]
[347604099,1735944637924,-500.0,0.00011986,2]
[347604100,1735944637933,-779.27,0.00011986,2]
[347604101,1735944637943,-500.0,0.00011986,2]
[347604102,1735944637952,-500.0,0.00011986,2]
[347604103,1735944637962,-500.0,0.00011986,2]
[347604104,1735944637971,-500.0,0.00011986,2]
[347604105,1735944637981,-500.0,0.00011986,2]
[347604106,1735944637990,-500.0,0.00011986,2]
[347604107,1735944638001,-500.0,0.00011986,2]
[347604108,1735944638011,-500.0,0.00011986,2]
[347604109,1735944638021,-500.0,0.00011986,2]
[347604110,1735944638030,-500.0,0.00011986,2]
[347604111,1735944638039,-500.0,0.00011986,2]
[347604112,1735944638049,-500.0,0.00011986,2]
[347604113,1735944638058,-500.0,0.00011986,2]
[347604115,1735944638068,-500.0,0.00011986,2]
[347604117,1735944638077,-500.0,0.00011986,2]
[347604119,1735944638086,-419.77017969,0.00011986,2]
[347604122,1735944638105,-80.22982031,0.00011986,2]
[347604124,1735944638114,-341.46024746,0.00011986,2]
[347604125,1735944638125,-158.53975254,0.00011986,2]
[347604126,1735944638135,-500.0,0.00011986,2]
[347604127,1735944638144,-500.0,0.00011986,2]
[347604128,1735944638154,-500.0,0.00011986,2]
[347604129,1735944638164,-500.0,0.00011986,2]
[347604130,1735944638173,-500.0,0.00011986,2]
[347604131,1735944638183,-500.0,0.00011986,2]
[347604132,1735944638192,-513.36,0.00011986,2]
[347604133,1735944638201,-500.0,0.00011986,2]
[347604135,1735944638210,-500.0,0.00011986,2]